[Event "German Rapid Championship 2022"]
[Site "Goettingen"]
[Date "2022.09.24"]
[Round "4.12"]
[White "Albert, Markus"]
[Black "Carlstedt, Jonathan"]
[Result "0-1"]
[ECO "A00"]
[WhiteElo "2129"]
[BlackElo "2433"]
[Annotator "TA"]
[PlyCount "92"]
[EventDate "2022.09.24"]
[EventType "swiss"]
[EventCountry "GER"]
[SourceTitle "playchess.com"]
[Source "ChessBase"]
[SourceQuality "1"]
[TimeControl "900+10"]

{[%evp 9,92,-15,-4,-16,-7,-61,-30,-25,-20,-35,-31,-93,-86,-73,-89,-81,-71,-111,-113,-135,-139,-136,-95,-91,-85,-96,-98,-117,-71,-179,-152,-175,-161,-200,-200,-202,-200,-226,-126,-134,-122,-121,-68,-68,-56,-72,-56,-79,-62,-125,-95,-104,-103,-140,-127,-137,-140,-247,-234,-375,-353,-348,-345,-260,-116,-115,-97,-135,-134,-270,-139,-216,0,-45,0,-29991,-29992,-29992,-29993,-29993,-29994,-29994,-29995,-29997,-29998]} 1. Nc3 {[%emt 0:00:02]} g6 {[%emt 0:00:03]} 2. h4 {[%emt 0:00:09]} h5 {[%emt 0:00:09]} 3. e4 {[%emt 0:00:03]} Bg7 {[%emt 0:00:03]} 4. Bc4 {[%emt 0:00:04]} c6 {[%emt 0:00:07] [#]} 5. a3 $146 {[%emt 0:00:09]} ({Predecessor:} 5. Nf3 d6 6. d4 Bg4 7. Be3 e6 8. d5 cxd5 9. exd5 e5 10. Qd2 Bxf3 11. gxf3 Ne7 {1-0 (37) Dourerassou,J (2443)-Pichot,A (2625) Chess.com INT 2022}) 5... Nf6 {[%emt 0:00:09]} (5... b5 6. Ba2 $14) 6. Ba2 {[%emt 0:00:20] B06: Modern Defence.} d5 {[%emt 0:00:04]} 7. Qe2 {[%emt 0:00:19]} (7. d3 $11) 7... O-O {[%emt 0:00:21]} 8. d3 $1 {[%emt 0:00:05] Black has an edge.} a5 {[%emt 0:01:41]} 9. Nh3 {[%emt 0:05:38]} b5 {[%emt 0:01:31][%cal Bb7b5,Bb5b4][%mdl 32]} 10. Nd1 {[%emt 0:01:16]} (10. Ng5 $15) 10... b4 $17 {[%emt 0:02:12]} 11. e5 {[%emt 0:01:55]} Ng4 {[%emt 0:00:03]} 12. f4 {[%emt 0:00:37]} Bf5 {[%emt 0:01:32]} 13. Ndf2 {[%emt 0:00:37]} e6 {[%emt 0:00:03] Black is more active.} 14. Nxg4 {[%emt 0:01:04]} Bxg4 {[%emt 0:00:03]} 15. Qe3 {[%emt 0:00:07]} Qxh4+ {[%emt 0:02:29]} 16. Nf2 {[%emt 0:00:14]} Qe7 {[%emt 0:00:02]} 17. Nxg4 {[%emt 0:00:09]} hxg4 {[%emt 0:00:02]} 18. Qg3 {[%emt 0:00:07]} f5 {[%emt 0:00:15]} ({But not} 18... bxa3 $6 19. bxa3 (19. Qh2 Rd8 $15) 19... Qc5 20. Kd2 $15 (20. Qh4 Re8 $11)) (18... Nd7 $142 19. Qxg4 (19. Qh2 Rfb8 $15) 19... bxa3 20. bxa3 (20. Qh3 Rfb8 $17) 20... Qc5) 19. a4 {[%emt 0:03:06]} (19. exf6 $17 Qxf6 20. Qxg4 (20. Qh2 Kf7 $17)) 19... Nd7 {[%emt 0:00:23]} 20. Be3 {[%emt 0:00:31]} Kf7 {[%emt 0:00:32]} 21. Ke2 {[%emt 0:00:24]} Rh8 {[%emt 0:00:13]} 22. Qf2 {[%emt 0:00:28]} g5 {[%emt 0:00:52]} 23. d4 {[%emt 0:00:15]} gxf4 {[%emt 0:00:24]} (23... c5 $1 $19 {aiming for ...cxd4.} 24. Raf1 Kg6) 24. Qxf4 {[%emt 0:00:15]} Rxh1 {[%emt 0:01:43]} 25. Rxh1 {[%emt 0:00:06]} Rh8 {[%emt 0:00:02]} (25... Nf8 $17 {[%cal Oc6c5]} 26. Rh5 Ke8) 26. Rxh8 $15 {[%emt 0:00:38][%mdl 64] [#] Remove Defender} Bxh8 {[%emt 0:00:02]} 27. Qh6 {[%emt 0:00:09] Against Qh4} Bg7 {[%emt 0:00:29]} 28. Qh5+ {[%emt 0:00:02]} Kf8 {[%emt 0:00:54]} 29. Qg6 {[%emt 0:00:18]} ({White should try} 29. Bg5 $15 Qe8 30. Qh7) 29... Qe8 {[%emt 0:00:34]} 30. Qh7 {[%emt 0:00:12]} Qf7 $36 {[%emt 0:00:28][%mdl 2048] ...f4 is the strong threat. White is under strong pressure.} 31. Bh6 {[%emt 0:00:30]} Bxh6 {[%emt 0:00:17]} 32. Qxh6+ $17 {[%emt 0:00:01][%mdl 4096] Endgame KQB-KQN} Ke8 {[%emt 0:00:07] White must now prevent ...f4.} 33. Qh8+ {[%emt 0:00:09]} (33. c4 $17) 33... Nf8 $19 {[%emt 0:00:23]} 34. c3 {[%emt 0:00:17]} (34. Qh1 {is a better defense.}) 34... bxc3 {[%emt 0:00:30]} 35. bxc3 {[%emt 0:00:06]} f4 {[%emt 0:00:47]} 36. Qh1 {[%emt 0:00:27]} Kd7 {[%emt 0:00:57]} (36... Qh7 $19 {has better winning chances.} 37. Qxh7 Nxh7) 37. Bb1 $17 {[%emt 0:00:05]} Kc7 {[%emt 0:00:08]} 38. Bd3 {[%emt 0:00:10]} Nd7 {[%emt 0:00:11]} 39. Kf2 {[%emt 0:00:11]} (39. Kd2 $17) 39... Nb6 {[%emt 0:00:13]} ({Black should play} 39... Qf8 $19 {Threatens to win with ...Qa3.} 40. Qd1 Qa3) 40. Bc2 {[%emt 0:00:19] [#]} (40. Qh8 $17 {keeps fighting.}) 40... Nc4 $2 {[%emt 0:00:03]} (40... Qe7 $1 $19 {Strongly threatening ...Qa3.} 41. Ke2 Qf8) 41. Qh8 {[%emt 0:00:07]} g3+ {[%emt 0:00:17][%cal Bg4g3,Bg3g2][%mdl 32]} (41... Qe7 $5 {[%cal Rg4g3]}) 42. Ke2 $2 {[%emt 0:00:13][%mdl 8192]} (42. Kf3 $11) 42... f3+ {[%emt 0:00:02] Black mates.} 43. gxf3 {[%emt 0:00:06]} Qf4 {[%emt 0:00:01]} 44. Qh7+ {[%emt 0:00:09]} Kb6 {[%emt 0:00:04]} 45. Qd3 {[%emt 0:00:15]} g2 {[%emt 0:00:04]} 46. Kf2 {[%emt 0:00:12]} Qh2 {[%emt 0:00:08] Weighted Error Value: White=0.43/Black=0.24 (precise)} 0-1

[Event "German Rapid Championship 2022"]
[Site "Goettingen"]
[Date "2022.09.24"]
[Round "4.13"]
[White "Reichmann, Hendrik"]
[Black "Elier, Ali"]
[Result "1-0"]
[ECO "D00"]
[WhiteElo "2307"]
[BlackElo "2164"]
[Annotator "TA"]
[PlyCount "79"]
[EventDate "2022.09.24"]
[EventType "swiss"]
[EventCountry "GER"]
[SourceTitle "playchess.com"]
[Source "ChessBase"]
[SourceQuality "1"]
[TimeControl "900+10"]

{[%evp 9,79,21,21,21,19,20,22,0,42,40,47,45,85,92,99,39,87,76,95,97,98,102,216,232,243,222,454,342,522,568,527,483,658,561,848,844,822,711,920,913,825,837,1370,985,991,981,1002,958,3331,3079,1470,1398,1266,531,589,546,558,554,540,521,443,397,709,685,29984,2543,29991,29992,29994,29995,29995,29996]} 1. d4 {[%emt 0:00:03]} d5 {[%emt 0:00:02]} 2. Bf4 {[%emt 0:00:03]} c5 {[%emt 0:00:01]} 3. e3 {[%emt 0:00:24]} Nf6 {[%emt 0:00:16]} 4. Nc3 {[%emt 0:00:06]} e6 {[%emt 0:00:22]} 5. Nb5 {[%emt 0:00:12]} Na6 $1 {[%emt 0:00:02]} 6. c3 {[%emt 0:00:08] D00: 1 d4 d5: Unusual lines.} Be7 {[%emt 0:00:22]} 7. a4 {[%emt 0:00:06]} O-O {[%emt 0:00:14]} 8. h3 {[%emt 0:00:41][%cal Bh2h3,Bh3h4][%mdl 32] [#] The position is equal.} cxd4 $146 {[%emt 0:00:35]} ({Predecessor:} 8... Ne8 9. Nf3 Nac7 10. Nxc7 Nxc7 11. Bd3 Ne8 12. a5 Nf6 13. O-O Bd7 14. Ne5 a6 {½-½ (54) Jobava,B (2713)-Yudin,S (2546) Dubai 2014}) 9. exd4 {[%emt 0:00:11]} Ne8 {[%emt 0:00:41]} 10. Nf3 {[%emt 0:02:03]} Nac7 {[%emt 0:00:10]} 11. Bd3 {[%emt 0:03:05]} a6 {[%emt 0:00:28]} 12. Na3 {[%emt 0:00:59] White has more active pieces.} (12. Nxc7 $16 Nxc7 13. Ne5) 12... g6 {[%emt 0:03:29]} (12... Bd6 $14 {is superior.} 13. Bc1 Nf6) 13. h4 {[%emt 0:00:28] White leaves nothing to chance now.} Ng7 {[%emt 0:00:10]} 14. Bh6 {[%emt 0:00:29][%cal Oh4h5]} Re8 {[%emt 0:00:56]} 15. h5 {[%emt 0:00:22] And now hxg6 would win.} Nf5 {[%emt 0:01:49]} (15... g5 $16) 16. hxg6 $18 {[%emt 0:00:15]} hxg6 {[%emt 0:00:02]} 17. Bf4 {[%emt 0:00:20][%cal Bh6f4,Bf4d6,Bd6c7][%mdl 32] Black must now prevent Qd2.} Bd6 $2 {[%emt 0:00:19]} (17... e5) 18. Qd2 {[%emt 0:01:17]} Qf6 {[%emt 0:04:29]} (18... e5 $142) 19. Ne5 {[%emt 0:00:39]} Qg7 {[%emt 0:01:05]} 20. g4 {[%emt 0:01:27]} f6 {[%emt 0:00:02]} 21. Nxg6 {[%emt 0:02:23]} ({Weaker is} 21. gxf5 exf5 22. Bh6 Qf7 $18) 21... Qxg6 {[%emt 0:01:07]} 22. Bxd6 {[%emt 0:00:05][%mdl 64] 0-0-0 is the strong threat. Pin, Trapped Piece} Qxg4 {[%emt 0:00:15]} 23. Bxc7 {[%emt 0:00:33]} e5 {[%emt 0:00:14]} 24. dxe5 {[%emt 0:00:36][%cal Bd4e5,Be5d6][%mdl 32]} Re7 {[%emt 0:00:31]} 25. Be2 {[%emt 0:00:07]} Qe4 {[%emt 0:00:08]} 26. Rg1+ {[%emt 0:00:26][%cal Bh1g1,Bg1g8,Bg8d8,Bd8d5][%mdl 32]} Kf8 {[%emt 0:00:02]} 27. Bd6 {[%emt 0:00:09]} Nxd6 {[%emt 0:00:03]} 28. exd6 {[%emt 0:00:01] Hoping for Qh6+.} Re6 {[%emt 0:00:21]} 29. Qh6+ {[%emt 0:01:27]} Ke8 {[%emt 0:00:06]} 30. Rg8+ {[%emt 0:00:41]} Kd7 {[%emt 0:00:03]} 31. Qg7+ {[%emt 0:00:01]} Kxd6 {[%emt 0:00:08][%csl Ge6][%cal Re4e2]} 32. Rd8+ {[%emt 0:00:01]} Kc6 {[%emt 0:00:17][%csl Ge6][%cal Re4e2] [#]} 33. O-O-O $1 {[%emt 0:00:31][%cal Ba1d1,Bd1e1,Be1e8,Be1c1,Bc1b1,Bb1a1,Ba1a2][%mdl 32]} Qf4+ {[%emt 0:00:24]} 34. Kb1 {[%emt 0:00:15]} Rxe2 {[%emt 0:00:01]} 35. R8xd5 {[%emt 0:00:07]} Bf5+ $2 {[%emt 0:00:48]} (35... Be6 36. Rd6+ Qxd6 37. Rxd6+ Kxd6) 36. Ka1 {[%emt 0:00:01][%cal Oa3c4] Threatening mate with Nc4!} Re1 {[%emt 0:00:53]} 37. Qxf6+ {[%emt 0:00:06]} (37. Rxe1 $142 Kb6 {[#]} 38. Rd6+ $3 {[%mdl 512]} Ka7 39. Qc7 Qxd6 40. Qxd6 Rc8 41. Re7 Rg8 42. Qd5) 37... Kc7 {[%emt 0:00:01]} 38. Rxe1 {[%emt 0:00:13] White mates.} Re8 {[%emt 0:00:07]} 39. Rxe8 {[%emt 0:00:25]} Qc1+ {[%emt 0:00:02]} 40. Ka2 {[%emt 0:00:01] Weighted Error Value: White=0.19 (very precise) /Black=0.65} 1-0

[Event "German Rapid Championship 2022"]
[Site "Goettingen"]
[Date "2022.09.24"]
[Round "5.1"]
[White "Krastev, Alexander"]
[Black "Bluebaum, Matthias"]
[Result "1/2-1/2"]
[ECO "C02"]
[WhiteElo "2431"]
[BlackElo "2647"]
[Annotator "TA"]
[PlyCount "82"]
[EventDate "2022.09.24"]
[EventType "swiss"]
[EventCountry "GER"]
[SourceTitle "playchess.com"]
[Source "ChessBase"]
[SourceQuality "1"]
[TimeControl "900+10"]

{[%evp 11,82,0,0,-28,-22,-25,-30,-40,-19,-34,-33,-53,-39,-29,31,18,38,43,79,38,79,77,69,67,137,71,69,68,72,79,83,47,77,0,10,0,29,0,0,0,0,-16,-16,-22,27,29,29,27,79,-21,-15,-56,-13,0,32,40,34,34,87,75,105,108,108,93,182,87,87,0,178,0,87,0,188]} 1. e4 {[%emt 0:00:01]} e6 {[%emt 0:00:01]} 2. d4 {[%emt 0:00:03]} d5 {[%emt 0:00:01]} 3. e5 {[%emt 0:00:01]} c5 {[%emt 0:00:01]} 4. c3 {[%emt 0:00:01]} Nc6 {[%emt 0:00:01]} 5. Nf3 {[%emt 0:00:03]} Qb6 {[%emt 0:00:02]} 6. Bd3 {[%emt 0:00:09]} cxd4 {[%emt 0:00:04]} 7. O-O $1 {[%emt 0:00:04][%mdl 4] now scores much better than the old 7.cxd4. C02: French: Advance Variation.} Bd7 {[%emt 0:00:03]} 8. Re1 {[%emt 0:00:05]} Nge7 {[%emt 0:00:11]} 9. h4 {[%emt 0:00:02] Black has an edge.} h6 {[%emt 0:00:03]} 10. h5 {[%emt 0:00:04]} Rc8 {[%emt 0:00:26]} 11. a3 {[%emt 0:00:14]} a6 {[%emt 0:00:46]} 12. b4 {[%emt 0:00:04] [#]} Qd8 $146 {[%emt 0:01:53]} (12... dxc3 $11 13. Nxc3 Nxb4 $1) ({Predecessor:} 12... dxc3 13. Nxc3 Nd4 14. Bb2 Nxf3+ 15. Qxf3 Bc6 16. Qg4 Rg8 17. Rac1 g6 18. hxg6 Nxg6 19. Nxd5 Bxd5 20. Rxc8+ Kd7 21. Bd4 Ne7 22. Bxb6 Rxg4 23. Rd8+ {1-0 (23) Supi,L (2590)-Rodi,L (2351) Sales Oliveira 2022}) 13. cxd4 $14 {[%emt 0:00:25]} Nf5 {[%emt 0:00:01]} 14. Bb2 {[%emt 0:00:36]} Be7 {[%emt 0:00:18]} 15. Nbd2 {[%emt 0:00:02]} (15. Nc3 $5 {[%cal Rd3f5]}) 15... O-O {[%emt 0:00:44]} 16. Nb3 {[%emt 0:00:48]} Be8 {[%emt 0:04:45]} 17. Rc1 {[%emt 0:02:47]} Nb8 {[%emt 0:01:37]} ({Black should try} 17... f6 $14) 18. Qe2 {[%emt 0:05:35]} (18. Rxc8 $142 Qxc8 19. Bb1) 18... Rxc1 $16 {[%emt 0:02:23]} 19. Rxc1 {[%emt 0:00:02]} Ba4 {[%emt 0:00:23]} 20. Nc5 {[%emt 0:00:42]} Bxc5 {[%emt 0:00:45]} 21. dxc5 {[%emt 0:00:18]} Nh4 {[%emt 0:00:35]} 22. Bb1 {[%emt 0:03:49] White is more active.} ({White should play} 22. Nxh4 $16 Qxh4 23. g3) 22... Nc6 {[%emt 0:01:14]} 23. Re1 {[%emt 0:01:26]} Re8 {[%emt 0:00:30]} 24. Qd3 {[%emt 0:00:55] Strongly threatening Qh7+.} Nxf3+ {[%emt 0:00:05]} 25. Qxf3 {[%emt 0:00:02]} Qh4 {[%emt 0:00:31]} 26. Qd3 {[%emt 0:00:51]} Kf8 {[%emt 0:00:30]} 27. Qh7 {[%emt 0:00:02]} Qxh5 {[%emt 0:00:38]} (27... Qg4 {deserves consideration.}) 28. Qh8+ $11 {[%emt 0:00:01][%mdl 64] Deflection} Ke7 {[%emt 0:00:00]} 29. Qxg7 {[%emt 0:00:01]} Qg5 {[%emt 0:00:25]} (29... Kd7 $11 {remains equal.}) 30. Qxg5+ {[%emt 0:00:29]} (30. Qf6+ $16 Qxf6 31. exf6+ Kd7 32. f4) 30... hxg5 {[%emt 0:00:02]} 31. g4 {[%emt 0:00:05]} Rd8 {[%emt 0:00:34]} 32. Bc1 {[%emt 0:00:21]} f6 {[%emt 0:00:01]} 33. exf6+ {[%emt 0:00:02]} Kxf6 {[%emt 0:00:01]} 34. Kg2 {[%emt 0:00:03] Rh1 is the strong threat.} Rh8 {[%emt 0:00:46]} (34... d4 $14) 35. Ba2 $1 $16 {[%emt 0:00:18]} Rh4 {[%emt 0:00:27]} 36. f3 {[%emt 0:00:06]} Bc2 {[%emt 0:00:01]} 37. Kg3 {[%emt 0:00:15]} Rh7 {[%emt 0:00:04] [#]} (37... Rh6 $16) 38. Bb2+ {[%emt 0:00:07]} (38. Bxg5+ $1 $18 {[%mdl 512]} Kxg5 39. Rxe6) 38... Kf7 {[%emt 0:00:03]} 39. Bc1 {[%emt 0:00:10]} (39. Rc1 $16 Bd3 40. Rd1) 39... Kf6 $18 {[%emt 0:00:01] [#]} 40. Bb2+ {[%emt 0:00:05]} (40. Bxg5+ $1 $18 {[%mdl 512] and the rest is easy.} Kxg5 41. Rxe6) 40... Kf7 $16 {[%emt 0:00:01]} 41. Bc1 {[%emt 0:00:01]} (41. Rc1 $16 Bd3 42. Bb3) 41... Kf6 {Weighted Error Value: White=0.28 (precise) /Black=0.22 (precise)} 1/2-1/2

[Event "German Rapid Championship 2022"]
[Site "Goettingen"]
[Date "2022.09.24"]
[Round "5.2"]
[White "Poetsch, Hagen"]
[Black "Svane, Rasmus"]
[Result "1/2-1/2"]
[ECO "C44"]
[WhiteElo "2491"]
[BlackElo "2615"]
[Annotator "TA"]
[PlyCount "96"]
[EventDate "2022.09.24"]
[EventType "swiss"]
[EventCountry "GER"]
[SourceTitle "playchess.com"]
[Source "ChessBase"]
[SourceQuality "1"]
[TimeControl "900+10"]

{[%evp 17,96,0,0,0,0,0,6,5,17,0,8,11,14,17,17,10,27,51,42,2,16,0,0,0,0,0,0,0,0,0,0,0,0,0,0,0,0,0,0,0,0,-4,-4,0,0,-9,0,0,0,-11,0,-12,0,0,0,-12,-12,-33,-11,-11,-11,-11,-11,-11,-11,-11,-11,-11,-14,-33,0,0,0,0,0,0,8,8,8,8,16]} 1. e4 {[%emt 0:00:02]} e5 {[%emt 0:00:02]} 2. Nf3 {[%emt 0:00:01]} Nc6 {[%emt 0:00:01]} 3. d4 {[%emt 0:00:03]} exd4 {[%emt 0:00:04]} 4. Nxd4 {[%emt 0:00:01]} Nf6 {[%emt 0:00:04]} 5. Nxc6 {[%emt 0:00:02]} bxc6 {[%emt 0:00:02]} 6. Bd3 {[%emt 0:00:02]} d5 {[%emt 0:01:12]} 7. exd5 {[%emt 0:00:02]} cxd5 {[%emt 0:00:04]} 8. O-O {[%emt 0:00:03]} Be7 {[%emt 0:00:02]} 9. c4 {[%emt 0:00:02]} O-O $1 {[%emt 0:01:14] 9...0-0 is better than 9...d4.} 10. cxd5 {[%emt 0:00:04] C45: Scotch Game.} Nxd5 {[%emt 0:00:11]} 11. Qf3 {[%emt 0:01:07]} Be6 {[%emt 0:01:41]} 12. Rd1 {[%emt 0:01:05]} c6 {[%emt 0:00:50] [#]} 13. Nd2 $146 {[%emt 0:00:59]} ({Predecessor:} 13. h3 Qb6 14. Nd2 Nb4 15. Bb1 Rad8 16. a3 Qa6 17. Ne4 Rxd1+ 18. Qxd1 Rd8 19. Bd2 {½-½ (32) Najer,E (2661)-Petrosyan,M (2613) Moscow 2019}) 13... Qd7 {[%emt 0:00:57] [#] Threatens to win with ...Bg4.} (13... Qc8 $5 {[%cal Re6g4]}) 14. h3 {[%emt 0:00:13] Inhibits Bg4.} Nb4 {[%emt 0:00:56]} 15. Bb1 {[%emt 0:02:14]} Rad8 {[%emt 0:00:42]} 16. a3 {[%emt 0:00:32]} Na6 {[%emt 0:01:43]} 17. Bc2 {[%emt 0:00:51]} Qc8 {[%emt 0:03:03]} 18. b3 {[%emt 0:03:10]} Bd5 {[%emt 0:00:57]} 19. Qh5 {[%emt 0:01:49][%csl Gc2][%cal Rh5h7] [#]} g6 {[%emt 0:00:20]} 20. Qe5 {[%emt 0:00:05]} Qe6 {[%emt 0:00:13]} ({Don't take} 20... Bd6 21. Qf6 Qe6 22. Qxe6 (22. Bb2 Qxf6 23. Bxf6 Rde8 $11) 22... Bxe6 23. Nc4 $14) 21. Qxe6 {[%emt 0:02:17]} Bxe6 {[%emt 0:00:01]} 22. Bb2 {[%emt 0:00:10]} Nc5 {[%emt 0:01:03]} 23. b4 {[%emt 0:01:27]} Nd3 {[%emt 0:00:02]} 24. Bxd3 {[%emt 0:00:30]} Rxd3 {[%emt 0:00:01]} 25. Ne4 {[%emt 0:00:02]} Rxd1+ {[%emt 0:01:10]} 26. Rxd1 {[%emt 0:00:02]} f5 {[%emt 0:00:03]} 27. Nc5 {[%emt 0:00:26]} Bxc5 {[%emt 0:01:03]} 28. bxc5 $11 {[%emt 0:00:02][%mdl 4096] Endgame KRB-KRB} Bd5 {[%emt 0:00:37]} 29. Be5 {[%emt 0:00:18]} Re8 {[%emt 0:00:35]} 30. f4 {[%emt 0:00:06]} g5 {[%emt 0:00:05]} 31. g3 {[%emt 0:00:51]} Kf7 {[%emt 0:00:24]} 32. Rb1 {[%emt 0:00:21]} gxf4 {[%emt 0:00:11]} 33. gxf4 {[%emt 0:00:10]} Rg8+ {[%emt 0:00:05]} 34. Kf1 {[%emt 0:00:29]} Rg3 {[%emt 0:00:39]} 35. Rb7+ {[%emt 0:00:03]} Ke6 {[%emt 0:00:07]} 36. Rxa7 {[%emt 0:00:45]} Rxh3 {[%emt 0:00:09]} 37. a4 {[%emt 0:00:04]} h5 {[%emt 0:00:10]} 38. a5 {[%emt 0:00:14]} Ra3 {[%emt 0:00:23]} 39. Rh7 {[%emt 0:00:23]} Bf3 {[%emt 0:00:08]} 40. Kf2 {[%emt 0:00:07]} Bg4 {[%emt 0:00:19]} 41. Bc7 {[%emt 0:00:16]} Kd5 {[%emt 0:00:04]} 42. Bb6 {[%emt 0:00:11]} Ke4 {[%emt 0:00:08]} 43. Bc7 {[%emt 0:00:15]} Ra2+ {[%emt 0:00:12]} 44. Kg3 {[%emt 0:00:03] The position is equal.} Kd5 {[%emt 0:00:08]} 45. Bb6 {[%emt 0:00:07]} Ra3+ {[%emt 0:00:03]} 46. Kh4 {[%emt 0:00:02]} Ke4 {[%emt 0:00:13]} 47. Kg5 {[%emt 0:00:11]} Kf3 $1 {[%emt 0:00:14]} 48. Rh6 {[%emt 0:00:09]} Kg3 $1 {[%emt 0:00:19] Weighted Error Value: White=0.04 (flawless) /Black=0.03 (flawless)} 1/2-1/2

[Event "German Rapid Championship 2022"]
[Site "Goettingen"]
[Date "2022.09.24"]
[Round "5.3"]
[White "Fridman, Daniel"]
[Black "Lubbe, Nikolas"]
[Result "1-0"]
[ECO "E06"]
[WhiteElo "2607"]
[BlackElo "2479"]
[Annotator "TA"]
[PlyCount "53"]
[EventDate "2022.09.24"]
[EventType "swiss"]
[EventCountry "GER"]
[SourceTitle "playchess.com"]
[Source "ChessBase"]
[SourceQuality "1"]
[TimeControl "900+10"]

{[%evp 12,53,14,15,29,13,15,12,0,15,47,34,44,35,61,45,83,31,64,65,67,50,64,60,69,61,237,254,209,202,230,185,267,263,268,205,414,395,411,402,415,408,415,397]} 1. d4 {[%emt 0:00:01]} d5 {[%emt 0:00:02]} 2. c4 {[%emt 0:00:04]} e6 {[%emt 0:00:01]} 3. Nf3 {[%emt 0:00:02]} Nf6 {[%emt 0:00:02]} 4. g3 {[%emt 0:00:02]} Be7 {[%emt 0:00:03]} 5. Bg2 {[%emt 0:00:02]} O-O {[%emt 0:00:03]} 6. Nc3 {[%emt 0:00:02]} c6 {[%emt 0:00:02]} 7. O-O {[%emt 0:00:06]} a5 {[%emt 0:00:03] E06: Closed Catalan: Early deviations.} 8. Bf4 {[%emt 0:00:55]} dxc4 {[%emt 0:00:34]} 9. Ne5 {[%emt 0:00:13]} Nd5 {[%emt 0:00:19] The position is equal.} 10. Nxc4 {[%emt 0:00:03] [#]} b6 $146 {[%emt 0:04:54]} ({Predecessor:} 10... Nd7 11. Rc1 Nxf4 12. gxf4 Qc7 13. e3 Rd8 14. Ne4 Nf6 15. Ng5 h6 16. Ne4 Bd7 {0-1 (35) Dudin,G (2477)-Karsay,P (2310) Terme Catez 2022}) 11. Rc1 {[%emt 0:00:03]} Bb7 {[%emt 0:02:15]} 12. Ne5 {[%emt 0:00:04]} Nxf4 {[%emt 0:00:54]} 13. gxf4 {[%emt 0:00:02]} f6 {[%emt 0:01:46]} 14. Nf3 {[%emt 0:00:01]} (14. Nd3 $16) 14... Re8 {[%emt 0:00:45]} 15. Qb3 {[%emt 0:00:28]} Bf8 {[%emt 0:01:15]} 16. f5 {[%emt 0:00:26]} Bc8 {[%emt 0:01:21]} 17. Bh3 {[%emt 0:01:26][%cal Rf5e6] White is much more active.} b5 {[%emt 0:00:53]} 18. fxe6 {[%emt 0:02:10] [#] Black must now prevent e7+.} Qe7 $2 {[%emt 0:00:02] This move loses the game for Black.} (18... a4 $14 19. e7+ axb3 20. exd8=R (20. exd8=Q Rxd8 21. Bxc8 Rxc8 $14) 20... Rxd8 21. Bxc8 Rxc8) 19. d5 $18 {[%emt 0:00:15] Threatens to win with dxc6.} a4 {[%emt 0:00:05]} 20. Qd1 {[%emt 0:00:23]} Rd8 {[%emt 0:00:25]} 21. e4 {[%emt 0:02:44]} Bb7 {[%emt 0:00:39]} (21... a3 $142) 22. Nd4 {[%emt 0:00:47]} b4 {[%emt 0:00:45]} 23. dxc6 {[%emt 0:03:40]} Nxc6 {[%emt 0:01:22]} (23... bxc3 24. cxb7 Qxb7) 24. Nd5 {[%emt 0:00:02] Pair of Knights! White is winning.} Qe8 {[%emt 0:00:09]} 25. Nxc6 {[%emt 0:00:31]} Bxc6 {[%emt 0:00:02]} 26. e7 {[%emt 0:00:08]} Bxe7 {[%emt 0:00:12] [#]} 27. Rxc6 $1 {[%emt 0:00:03][%mdl 512] Weighted Error Value: White=0.13 (very precise) /Black=0.35} 1-0

[Event "German Rapid Championship 2022"]
[Site "Goettingen"]
[Date "2022.09.24"]
[Round "5.4"]
[White "Heider, Martin"]
[Black "Knuedel, Torben"]
[Result "1-0"]
[ECO "A05"]
[WhiteElo "2393"]
[BlackElo "2221"]
[Annotator "TA"]
[PlyCount "51"]
[EventDate "2022.09.24"]
[EventType "swiss"]
[EventCountry "GER"]
[SourceTitle "playchess.com"]
[Source "ChessBase"]
[SourceQuality "1"]
[TimeControl "900+10"]

{[%evp 22,51,32,16,41,39,104,108,107,105,102,109,114,89,87,77,112,114,122,118,131,124,297,289,297,291,299,214,460,441,29991,1185]} 1. Nf3 {[%emt 0:00:03]} Nf6 {[%emt 0:00:02]} 2. b3 {[%emt 0:00:01]} e6 {[%emt 0:00:05]} 3. Bb2 {[%emt 0:00:02]} d5 {[%emt 0:00:02]} 4. c4 {[%emt 0:00:15]} Be7 {[%emt 0:00:02]} 5. e3 {[%emt 0:00:24]} O-O {[%emt 0:00:04]} 6. Nc3 {[%emt 0:00:05]} b6 {[%emt 0:00:02]} 7. g3 {[%emt 0:00:12]} Bb7 {[%emt 0:00:03]} 8. Bg2 {[%emt 0:00:13]} c5 {[%emt 0:00:02]} 9. O-O {[%emt 0:00:04]} Nc6 {[%emt 0:00:03]} 10. cxd5 {[%emt 0:00:03]} exd5 {[%emt 0:00:14]} 11. d4 {[%emt 0:00:02]} Rc8 {[%emt 0:01:39]} 12. Rc1 {[%emt 0:00:11]} Ba6 {[%emt 0:00:45] A14: English Opening: 1...e6 with b3 by White.} 13. Re1 {[%emt 0:00:23]} cxd4 {[%emt 0:00:10]} ({Black should play} 13... c4 $14) 14. Nxd4 $16 {[%emt 0:00:40] [#]} Nxd4 $146 {[%emt 0:00:58] White is better.} ({Predecessor:} 14... Nb4 15. Nf5 Nd3 16. Nxd5 Nxd5 17. Rxc8 Bxc8 18. Qxd3 Bf6 19. Bxf6 Nxf6 20. Qxd8 Rxd8 {1-0 (34) Akopian,V (2688)-Iakymov,V (2463) Rijeka 2010}) 15. Qxd4 {[%emt 0:00:20][%cal Rc3d5]} Bc5 {[%emt 0:00:06]} 16. Qa4 {[%emt 0:00:54]} Bb7 {[%emt 0:00:08]} 17. Red1 {[%emt 0:02:23]} Bc6 {[%emt 0:00:29]} 18. Qf4 {[%emt 0:00:49][%cal Oc3e4]} (18. Qxa7 $2 Ra8 19. Qxa8 Qxa8 $19) 18... Bd6 {[%emt 0:02:03]} 19. Qf5 {[%emt 0:01:45] White is much more active.} Bd7 {[%emt 0:02:55]} 20. Qb1 {[%emt 0:00:59]} Bg4 {[%emt 0:00:17]} 21. Nxd5 {[%emt 0:01:59]} Bxd1 $2 {[%emt 0:02:01]} (21... Rxc1 $16 {was necessary.} 22. Rxc1 Nxd5) 22. Nxf6+ $18 {[%emt 0:00:43]} (22. Rxd1 Nxd5 23. Bxd5 (23. Rxd5 Qe7 $11) 23... Qg5 $11) 22... gxf6 {[%emt 0:00:05]} 23. Rxd1 {[%emt 0:00:04] [#] Hoping for Rd4.} Qe7 {[%emt 0:02:18]} 24. Qf5 {[%emt 0:01:43]} Rc5 $2 {[%emt 0:00:45]} (24... Qe6 {was called for.} 25. Qh5 (25. Qxf6 Qxf6 26. Bxf6 Ba3 $16) (25. Qxe6 fxe6 26. Rxd6 Rc2 $18) 25... Be7) 25. Bd5 {[%emt 0:00:56] A strong pair of Bishops.} Kg7 {[%emt 0:03:14]} (25... Rxd5 $18 26. Rxd5 Be5) 26. Qg5+ {[%emt 0:00:14][%mdl 64] Deflection. Black did not feel at home in the position after the opening.  Weighted Error Value: White=0.10 (very precise) /Black=0.92} 1-0